[Event "December 12 Early 2023"]
[Site "https://www.chess.com"]
[Date "2023.12.12"]
[Round "7"]
[White "Zhuk, Valeriy"]
[Black "Spichkin, Alexander"]
[Result "1-0"]
[Board "134"]
[TimeControl "180+1"]
[WhiteFideId "24151254"]
[BlackFideId "4144074"]
[WhiteElo "2345"]
[BlackElo "2482"]
[WhiteTeam "RUS"]
[BlackTeam "RUS"]
[WhiteClock "0:00:10"]
[BlackClock "0:01:29"]

1. Nf3 {[%clk 0:03:00]}  f5 {[%clk 0:02:58]} 2. d3 {[%clk 0:02:54]}  d6 {[%clk 0:02:56]} 3. e4 {[%clk 0:02:54]}  e5 {[%clk 0:02:57]} 4. Nc3 {[%clk 0:02:53]}  Nf6 {[%clk 0:02:57]} 5. Bg5 {[%clk 0:02:32]}  Nc6 {[%clk 0:02:55]} 6. d4 {[%clk 0:02:30]}  exd4 {[%clk 0:02:53]} 7. Nxd4 {[%clk 0:02:30]}  Nxd4 {[%clk 0:02:53]} 8. Qxd4 {[%clk 0:02:29]}  Be7 {[%clk 0:02:53]} 9. Bc4 {[%clk 0:02:24]}  c5 {[%clk 0:02:45]} 10. Qe3 {[%clk 0:01:56]}  Ng4 {[%clk 0:02:42]} 11. Bxe7 {[%clk 0:01:34]}  Nxe3 {[%clk 0:02:40]} 12. Bxd8 {[%clk 0:01:34]}  Nxc4 {[%clk 0:02:40]} 13. Bh4 {[%clk 0:01:26]}  Nxb2 {[%clk 0:02:37]} 14. O-O {[%clk 0:01:15]}  O-O {[%clk 0:02:32]} 15. Be7 {[%clk 0:01:10]}  Re8 {[%clk 0:02:32]} 16. Bxd6 {[%clk 0:01:11]}  fxe4 {[%clk 0:02:33]} 17. Bxc5 {[%clk 0:01:11]}  Bf5 {[%clk 0:02:31]} 18. Nd5 {[%clk 0:01:09]}  b6 {[%clk 0:02:21]} 19. Ne7+ {[%clk 0:00:40]}  Kh8 {[%clk 0:02:21]} 20. Nxf5 {[%clk 0:00:39]}  bxc5 {[%clk 0:02:22]} 21. Rab1 {[%clk 0:00:40]}  Nc4 {[%clk 0:02:19]} 22. Rb7 {[%clk 0:00:36]}  e3 {[%clk 0:02:14]} 23. fxe3 {[%clk 0:00:24]}  Nxe3 {[%clk 0:02:13]} 24. Nxe3 {[%clk 0:00:24]}  Rxe3 {[%clk 0:02:13]} 25. Rff7 {[%clk 0:00:25]}  Rg8 {[%clk 0:02:06]} 26. Rxa7 {[%clk 0:00:22]}  Re2 {[%clk 0:02:06]} 27. Rf2 {[%clk 0:00:19]}  Re1+ {[%clk 0:02:06]} 28. Rf1 {[%clk 0:00:20]}  Re2 {[%clk 0:02:07]} 29. c3 {[%clk 0:00:19]}  Rc2 {[%clk 0:02:06]} 30. Rf3 {[%clk 0:00:18]}  Rd8 {[%clk 0:02:04]} 31. h3 {[%clk 0:00:18]}  h6 {[%clk 0:02:04]} 32. Kh2 {[%clk 0:00:18]}  Rdd2 {[%clk 0:02:03]} 33. Rg3 {[%clk 0:00:18]}  g5 {[%clk 0:02:03]} 34. a4 {[%clk 0:00:18]}  Kg8 {[%clk 0:01:57]} 35. h4 {[%clk 0:00:19]}  Rd5 {[%clk 0:01:52]} 36. hxg5 {[%clk 0:00:19]}  hxg5 {[%clk 0:01:52]} 37. a5 {[%clk 0:00:19]}  Ra2 {[%clk 0:01:51]} 38. Re3 {[%clk 0:00:18]}  Rf5 {[%clk 0:01:51]} 39. Re8+ {[%clk 0:00:18]}  Rf8 {[%clk 0:01:49]} 40. Rxf8+ {[%clk 0:00:18]}  Kxf8 {[%clk 0:01:49]} 41. a6 {[%clk 0:00:18]}  Ra3 {[%clk 0:01:48]} 42. c4 {[%clk 0:00:15]}  g4 {[%clk 0:01:45]} 43. Rc7 {[%clk 0:00:14]}  Rxa6 {[%clk 0:01:44]} 44. Rxc5 {[%clk 0:00:14]}  Ra3 {[%clk 0:01:42]} 45. Rg5 {[%clk 0:00:14]}  Rc3 {[%clk 0:01:41]} 46. c5 {[%clk 0:00:14]}  g3+ {[%clk 0:01:40]} 47. Kh3 {[%clk 0:00:14]}  Kf7 {[%clk 0:01:40]} 48. Kg4 {[%clk 0:00:15]}  Kf6 {[%clk 0:01:40]} 49. Rd5 {[%clk 0:00:15]}  Rc4+ {[%clk 0:01:39]} 50. Kxg3 {[%clk 0:00:15]}  Kg6 {[%clk 0:01:38]} 51. Kf3 {[%clk 0:00:14]}  Kf6 {[%clk 0:01:39]} 52. g4 {[%clk 0:00:15]}  Kg6 {[%clk 0:01:39]} 53. g5 {[%clk 0:00:12]}  Rh4 {[%clk 0:01:35]} 54. Ke3 {[%clk 0:00:12]}  Ra4 {[%clk 0:01:33]} 55. Kd3 {[%clk 0:00:12]}  Rh4 {[%clk 0:01:30]} 56. c6 {[%clk 0:00:12]}  Ra4 {[%clk 0:01:28]} 57. c7 {[%clk 0:00:12]}  Ra8 {[%clk 0:01:28]} 58. Rd8 {[%clk 0:00:10]}  Ra3+ {[%clk 0:01:29]} 59. Kd4 {[%clk 0:00:10]}  Kxg5 {[%clk 0:01:28]} 60. c8=Q {[%clk 0:00:10]}  Rf3 {[%clk 0:01:29]} 61. Rg8+ {[%clk 0:00:10]}  Kf4 {[%clk 0:01:29]} 62. Qg4# {[%clk 0:00:10]} 1-0

[Event "December 12 Early 2023"]
[Site "https://www.chess.com"]
[Date "2023.12.12"]
[Round "7"]
[White "Luukkonen, Tommi"]
[Black "Liu, Casper"]
[Result "1/2-1/2"]
[Board "135"]
[TimeControl "180+1"]
[WhiteFideId "501808"]
[BlackFideId "1454153"]
[WhiteElo "2326"]
[BlackElo "2450"]
[WhiteTeam "FIN"]
[BlackTeam "DEN"]
[WhiteClock "0:00:08"]
[BlackClock "0:00:03"]

1. e4 {[%clk 0:03:00]}  c6 {[%clk 0:02:59]} 2. Nc3 {[%clk 0:02:55]}  d5 {[%clk 0:03:00]} 3. Nf3 {[%clk 0:02:54]}  dxe4 {[%clk 0:03:00]} 4. Nxe4 {[%clk 0:02:53]}  Nf6 {[%clk 0:03:01]} 5. Qe2 {[%clk 0:02:53]}  Nxe4 {[%clk 0:03:00]} 6. Qxe4 {[%clk 0:02:53]}  Nd7 {[%clk 0:03:00]} 7. Bc4 {[%clk 0:02:53]}  Nf6 {[%clk 0:03:01]} 8. Ne5 {[%clk 0:02:53]}  e6 {[%clk 0:03:00]} 9. Qe2 {[%clk 0:02:54]}  Be7 {[%clk 0:03:00]} 10. O-O {[%clk 0:02:46]}  O-O {[%clk 0:03:00]} 11. c3 {[%clk 0:02:43]}  c5 {[%clk 0:02:56]} 12. d4 {[%clk 0:02:32]}  cxd4 {[%clk 0:02:55]} 13. Rd1 {[%clk 0:02:31]}  a6 {[%clk 0:02:27]} 14. Rxd4 {[%clk 0:02:26]}  Qa5 {[%clk 0:02:20]} 15. Bg5 {[%clk 0:02:08]}  Nd5 {[%clk 0:01:44]} 16. Rxd5 {[%clk 0:01:50]}  exd5 {[%clk 0:01:42]} 17. Bxe7 {[%clk 0:01:51]}  Re8 {[%clk 0:01:41]} 18. Nxf7 {[%clk 0:01:32]}  Kxf7 {[%clk 0:01:14]} 19. b4 {[%clk 0:01:31]}  Qb6 {[%clk 0:00:34]} 20. Qf3+ {[%clk 0:01:10]}  Kxe7 {[%clk 0:00:31]} 21. Re1+ {[%clk 0:01:10]}  Kd8 {[%clk 0:00:18]} 22. Qxd5+ {[%clk 0:01:09]}  Bd7 {[%clk 0:00:14]} 23. Rxe8+ {[%clk 0:01:04]}  Kxe8 {[%clk 0:00:14]} 24. Qg8+ {[%clk 0:01:04]}  Ke7 {[%clk 0:00:15]} 25. Qxa8 {[%clk 0:00:58]}  Qf6 {[%clk 0:00:15]} 26. Qxb7 {[%clk 0:00:48]}  Qxc3 {[%clk 0:00:15]} 27. Qe4+ {[%clk 0:00:47]}  Kd8 {[%clk 0:00:15]} 28. g3 {[%clk 0:00:39]}  Kc7 {[%clk 0:00:12]} 29. Qf4+ {[%clk 0:00:32]}  Kb6 {[%clk 0:00:11]} 30. Qd6+ {[%clk 0:00:28]}  Bc6 {[%clk 0:00:11]} 31. Qc5+ {[%clk 0:00:24]}  Kc7 {[%clk 0:00:07]} 32. Qe7+ {[%clk 0:00:16]}  Kb8 {[%clk 0:00:05]} 33. Qf8+ {[%clk 0:00:13]}  Ka7 {[%clk 0:00:03]} 34. Qe7+ {[%clk 0:00:12]}  Kb8 {[%clk 0:00:03]} 35. Qd8+ {[%clk 0:00:10]}  Kb7 {[%clk 0:00:03]} 36. Qe7+ {[%clk 0:00:08]}  Kb8 {[%clk 0:00:03]} 1/2-1/2

[Event "December 12 Early 2023"]
[Site "https://www.chess.com"]
[Date "2023.12.12"]
[Round "7"]
[White "Horcajuelo Rocamora, Martin"]
[Black "Tarasova, Viktoriya"]
[Result "1-0"]
[Board "138"]
[TimeControl "180+1"]
[WhiteFideId "24573027"]
[BlackFideId "4175840"]
[WhiteElo "2429"]
[BlackElo "2318"]
[WhiteTeam "ESP"]
[BlackTeam "RUS"]
[WhiteClock "0:01:11"]
[BlackClock "0:00:00"]

1. e4 {[%clk 0:02:55]}  e5 {[%clk 0:02:59]} 2. Nf3 {[%clk 0:02:50]}  Nc6 {[%clk 0:02:59]} 3. Bc4 {[%clk 0:02:51]}  Bc5 {[%clk 0:02:59]} 4. O-O {[%clk 0:02:51]}  Nf6 {[%clk 0:02:56]} 5. d3 {[%clk 0:02:49]}  h6 {[%clk 0:02:55]} 6. c3 {[%clk 0:02:49]}  d6 {[%clk 0:02:55]} 7. h3 {[%clk 0:02:48]}  a6 {[%clk 0:02:53]} 8. d4 {[%clk 0:02:47]}  Bb6 {[%clk 0:02:51]} 9. Re1 {[%clk 0:02:47]}  O-O {[%clk 0:02:46]} 10. Nbd2 {[%clk 0:02:41]}  Re8 {[%clk 0:02:39]} 11. d5 {[%clk 0:02:19]}  Ne7 {[%clk 0:02:36]} 12. Bd3 {[%clk 0:02:20]}  Ng6 {[%clk 0:02:35]} 13. Nf1 {[%clk 0:02:16]}  Rf8 {[%clk 0:02:31]} 14. Ng3 {[%clk 0:02:06]}  Nh7 {[%clk 0:02:28]} 15. Nf5 {[%clk 0:02:03]}  Nf4 {[%clk 0:02:18]} 16. Bxf4 {[%clk 0:01:59]}  exf4 {[%clk 0:02:18]} 17. N5d4 {[%clk 0:02:00]}  Ng5 {[%clk 0:02:01]} 18. e5 {[%clk 0:01:56]}  Nxf3+ {[%clk 0:01:49]} 19. Nxf3 {[%clk 0:01:55]}  dxe5 {[%clk 0:01:45]} 20. Nxe5 {[%clk 0:01:56]}  Qg5 {[%clk 0:01:35]} 21. Nf3 {[%clk 0:01:55]}  Qf6 {[%clk 0:01:34]} 22. Qe2 {[%clk 0:01:55]}  Bd7 {[%clk 0:01:31]} 23. Qe5 {[%clk 0:01:52]}  Qd6 {[%clk 0:01:01]} 24. Bf5 {[%clk 0:01:37]}  Bxf5 {[%clk 0:00:47]} 25. Qxf5 {[%clk 0:01:30]}  Rfe8 {[%clk 0:00:38]} 26. c4 {[%clk 0:01:28]}  Ba5 {[%clk 0:00:18]} 27. Re4 {[%clk 0:01:26]}  Rxe4 {[%clk 0:00:13]} 28. Qxe4 {[%clk 0:01:27]}  Bb6 {[%clk 0:00:11]} 29. Re1 {[%clk 0:01:25]}  Qc5 {[%clk 0:00:09]} 30. Re2 {[%clk 0:01:25]}  Qd6 {[%clk 0:00:09]} 31. a3 {[%clk 0:01:25]}  Rd8 {[%clk 0:00:07]} 32. b4 {[%clk 0:01:25]}  Ba7 {[%clk 0:00:07]} 33. Nh4 {[%clk 0:01:23]}  c6 {[%clk 0:00:06]} 34. Nf5 {[%clk 0:01:23]}  Qf6 {[%clk 0:00:06]} 35. d6 {[%clk 0:01:21]}  Qg5 {[%clk 0:00:02]} 36. Ne7+ {[%clk 0:01:20]}  Kh8 {[%clk 0:00:02]} 37. c5 {[%clk 0:01:17]}  f3 {[%clk 0:00:01]} 38. Qxf3 {[%clk 0:01:17]}  b6 {[%clk 0:00:02]} 39. Qxf7 {[%clk 0:01:17]}  bxc5 {[%clk 0:00:01]} 40. Ng6+ {[%clk 0:01:16]}  Kh7 {[%clk 0:00:01]} 41. Nf8+ {[%clk 0:01:16]}  Kh8 {[%clk 0:00:02]} 42. Ne6 {[%clk 0:01:11]}  Rb8 {[%clk 0:00:00]} 43. Nxg5 {[%clk 0:01:11]} 1-0

[Event "December 12 Early 2023"]
[Site "https://www.chess.com"]
[Date "2023.12.12"]
[Round "7"]
[White "Latorre, Vincent"]
[Black "Skibbe, Willi"]
[Result "0-1"]
[Board "142"]
[TimeControl "180+1"]
[WhiteFideId "2636891"]
[BlackFideId "4682190"]
[WhiteElo "2422"]
[BlackElo "2290"]
[WhiteTeam "CAN"]
[BlackTeam "GER"]
[WhiteClock "0:00:12"]
[BlackClock "0:01:12"]

1. e4 {[%clk 0:03:00]}  e6 {[%clk 0:02:58]} 2. d4 {[%clk 0:03:00]}  d5 {[%clk 0:02:58]} 3. e5 {[%clk 0:02:58]}  c5 {[%clk 0:02:58]} 4. c3 {[%clk 0:02:58]}  Nc6 {[%clk 0:02:58]} 5. Nf3 {[%clk 0:02:54]}  Bd7 {[%clk 0:02:58]} 6. Be2 {[%clk 0:02:50]}  Nge7 {[%clk 0:02:56]} 7. dxc5 {[%clk 0:02:45]}  Ng6 {[%clk 0:02:55]} 8. b4 {[%clk 0:02:40]}  Ncxe5 {[%clk 0:02:54]} 9. Nxe5 {[%clk 0:02:40]}  Nxe5 {[%clk 0:02:54]} 10. O-O {[%clk 0:02:41]}  Be7 {[%clk 0:02:51]} 11. Nd2 {[%clk 0:02:33]}  O-O {[%clk 0:02:50]} 12. f4 {[%clk 0:02:23]}  Ng6 {[%clk 0:02:45]} 13. a3 {[%clk 0:01:58]}  b6 {[%clk 0:02:36]} 14. cxb6 {[%clk 0:01:55]}  Qxb6+ {[%clk 0:02:37]} 15. Kh1 {[%clk 0:01:55]}  Bf6 {[%clk 0:02:24]} 16. Bb2 {[%clk 0:01:52]}  Rfc8 {[%clk 0:02:17]} 17. Qb3 {[%clk 0:01:48]}  Qe3 {[%clk 0:02:10]} 18. Ba6 {[%clk 0:01:25]}  Qxd2 {[%clk 0:01:57]} 19. Bxc8 {[%clk 0:01:23]}  Rxc8 {[%clk 0:01:58]} 20. Rad1 {[%clk 0:01:20]}  Qe2 {[%clk 0:01:53]} 21. Rfe1 {[%clk 0:01:05]}  Qc4 {[%clk 0:01:53]} 22. Qxc4 {[%clk 0:00:58]}  Rxc4 {[%clk 0:01:51]} 23. f5 {[%clk 0:00:59]}  Nf4 {[%clk 0:01:34]} 24. g3 {[%clk 0:00:55]}  Nh3 {[%clk 0:01:31]} 25. Kg2 {[%clk 0:00:51]}  Ng5 {[%clk 0:01:31]} 26. fxe6 {[%clk 0:00:51]}  fxe6 {[%clk 0:01:31]} 27. Re3 {[%clk 0:00:33]}  d4 {[%clk 0:01:16]} 28. h4 {[%clk 0:00:18]}  Bc6+ {[%clk 0:01:13]} 29. Kh2 {[%clk 0:00:12]}  Nf3+ {[%clk 0:01:12]} 0-1

[Event "December 12 Early 2023"]
[Site "https://www.chess.com"]
[Date "2023.12.12"]
[Round "7"]
[White "Nasybullina, Alfia"]
[Black "Sari, Yasin"]
[Result "0-1"]
[Board "144"]
[TimeControl "180+1"]
[WhiteFideId "4132416"]
[BlackFideId "6320902"]
[WhiteElo "2290"]
[BlackElo "2416"]
[WhiteTeam "KAZ"]
[BlackTeam "TUR"]
[WhiteClock "0:00:21"]
[BlackClock "0:00:10"]

1. d4 {[%clk 0:03:00]}  d5 {[%clk 0:02:59]} 2. Nf3 {[%clk 0:02:59]}  Nf6 {[%clk 0:02:56]} 3. Bf4 {[%clk 0:02:58]}  c5 {[%clk 0:02:54]} 4. Bxb8 {[%clk 0:02:58]}  Rxb8 {[%clk 0:02:54]} 5. c3 {[%clk 0:02:59]}  e6 {[%clk 0:02:46]} 6. e3 {[%clk 0:02:57]}  Bd6 {[%clk 0:02:45]} 7. Nbd2 {[%clk 0:02:55]}  O-O {[%clk 0:02:45]} 8. Bd3 {[%clk 0:02:53]}  b5 {[%clk 0:02:43]} 9. O-O {[%clk 0:02:50]}  b4 {[%clk 0:02:31]} 10. cxb4 {[%clk 0:02:43]}  c4 {[%clk 0:02:24]} 11. Bc2 {[%clk 0:02:34]}  Rxb4 {[%clk 0:02:24]} 12. Rb1 {[%clk 0:02:31]}  Bd7 {[%clk 0:02:12]} 13. a3 {[%clk 0:02:28]}  Rb7 {[%clk 0:02:00]} 14. e4 {[%clk 0:02:22]}  Bf4 {[%clk 0:01:51]} 15. e5 {[%clk 0:02:19]}  Ne8 {[%clk 0:01:49]} 16. g3 {[%clk 0:02:19]}  Bh6 {[%clk 0:01:46]} 17. b4 {[%clk 0:02:13]}  a5 {[%clk 0:01:39]} 18. Re1 {[%clk 0:02:07]}  axb4 {[%clk 0:01:36]} 19. axb4 {[%clk 0:02:03]}  Nc7 {[%clk 0:01:34]} 20. Nf1 {[%clk 0:01:53]}  Nb5 {[%clk 0:01:32]} 21. Rb2 {[%clk 0:01:30]}  Ra7 {[%clk 0:01:08]} 22. Ne3 {[%clk 0:01:25]}  Nc3 {[%clk 0:00:47]} 23. Qd2 {[%clk 0:01:18]}  Ra3 {[%clk 0:00:48]} 24. Rc1 {[%clk 0:01:03]}  Na4 {[%clk 0:00:34]} 25. Bxa4 {[%clk 0:01:00]}  Bxa4 {[%clk 0:00:34]} 26. Rc3 {[%clk 0:00:54]}  Ra1+ {[%clk 0:00:27]} 27. Kg2 {[%clk 0:00:54]}  Bb3 {[%clk 0:00:23]} 28. Qe2 {[%clk 0:00:50]}  Bxe3 {[%clk 0:00:17]} 29. Qxe3 {[%clk 0:00:49]}  Qa8 {[%clk 0:00:13]} 30. h4 {[%clk 0:00:43]}  Qa3 {[%clk 0:00:13]} 31. Re2 {[%clk 0:00:42]}  Qxb4 {[%clk 0:00:13]} 32. h5 {[%clk 0:00:42]}  h6 {[%clk 0:00:14]} 33. g4 {[%clk 0:00:34]}  Bd1 {[%clk 0:00:14]} 34. Rd2 {[%clk 0:00:29]}  Bxf3+ {[%clk 0:00:11]} 35. Qxf3 {[%clk 0:00:30]}  Qb1 {[%clk 0:00:11]} 36. Kg3 {[%clk 0:00:25]}  Qg1+ {[%clk 0:00:09]} 37. Kf4 {[%clk 0:00:25]}  Rb8 {[%clk 0:00:07]} 38. Qg3 {[%clk 0:00:24]}  Qxg3+ {[%clk 0:00:06]} 39. Rxg3 {[%clk 0:00:24]}  Kh7 {[%clk 0:00:04]} 40. g5 {[%clk 0:00:23]}  Rb3 {[%clk 0:00:04]} 41. g6+ {[%clk 0:00:22]}  fxg6 {[%clk 0:00:05]} 42. hxg6+ {[%clk 0:00:22]}  Kg8 {[%clk 0:00:06]} 43. Rxb3 {[%clk 0:00:22]}  cxb3 {[%clk 0:00:07]} 44. Rb2 {[%clk 0:00:22]}  Ra3 {[%clk 0:00:07]} 45. Ke3 {[%clk 0:00:22]}  Kf8 {[%clk 0:00:06]} 46. Kd3 {[%clk 0:00:23]}  Ke7 {[%clk 0:00:07]} 47. Kc3 {[%clk 0:00:24]}  h5 {[%clk 0:00:07]} 48. Rxb3 {[%clk 0:00:24]}  Rxb3+ {[%clk 0:00:08]} 49. Kxb3 {[%clk 0:00:24]}  h4 {[%clk 0:00:08]} 50. f4 {[%clk 0:00:24]}  h3 {[%clk 0:00:09]} 51. Kb4 {[%clk 0:00:25]}  h2 {[%clk 0:00:09]} 52. Kc5 {[%clk 0:00:25]}  h1=Q {[%clk 0:00:10]} 53. Kc6 {[%clk 0:00:21]}  Qc1+ {[%clk 0:00:10]} 0-1

[Event "December 12 Early 2023"]
[Site "https://www.chess.com"]
[Date "2023.12.12"]
[Round "7"]
[White "Leve, Nitai"]
[Black "Minina, Veronika"]
[Result "1-0"]
[Board "145"]
[TimeControl "180+1"]
[WhiteFideId "2006898"]
[BlackFideId "4174780"]
[WhiteElo "2414"]
[BlackElo "2264"]
[WhiteTeam "USA"]
[BlackTeam "RUS"]
[WhiteClock "0:00:13"]
[BlackClock "0:00:25"]

1. e4 {[%clk 0:03:00]}  c5 {[%clk 0:02:59]} 2. Nf3 {[%clk 0:03:00]}  Nc6 {[%clk 0:02:58]} 3. Bb5 {[%clk 0:02:59]}  e6 {[%clk 0:02:51]} 4. Nc3 {[%clk 0:02:54]}  Nge7 {[%clk 0:02:39]} 5. d3 {[%clk 0:02:54]}  Ng6 {[%clk 0:02:38]} 6. Bxc6 {[%clk 0:02:53]}  bxc6 {[%clk 0:02:37]} 7. h4 {[%clk 0:02:53]}  h5 {[%clk 0:02:36]} 8. Bg5 {[%clk 0:02:52]}  Be7 {[%clk 0:02:36]} 9. Qd2 {[%clk 0:02:52]}  f6 {[%clk 0:02:21]} 10. Be3 {[%clk 0:02:50]}  d5 {[%clk 0:02:20]} 11. d4 {[%clk 0:02:38]}  cxd4 {[%clk 0:01:50]} 12. Qxd4 {[%clk 0:02:27]}  O-O {[%clk 0:01:46]} 13. exd5 {[%clk 0:02:26]}  exd5 {[%clk 0:01:45]} 14. O-O-O {[%clk 0:02:13]}  Qa5 {[%clk 0:01:42]} 15. Qa4 {[%clk 0:02:01]}  Qc7 {[%clk 0:01:40]} 16. Nd4 {[%clk 0:01:45]}  Bd7 {[%clk 0:01:39]} 17. Qa6 {[%clk 0:01:38]}  Ne5 {[%clk 0:01:37]} 18. Bf4 {[%clk 0:01:23]}  Rfb8 {[%clk 0:01:36]} 19. Rhe1 {[%clk 0:01:13]}  Rb6 {[%clk 0:01:32]} 20. Qe2 {[%clk 0:01:12]}  Rab8 {[%clk 0:01:29]} 21. Bxe5 {[%clk 0:01:12]}  fxe5 {[%clk 0:01:29]} 22. Qxe5 {[%clk 0:01:12]}  Bd6 {[%clk 0:01:29]} 23. Nxd5 {[%clk 0:00:50]}  Bxe5 {[%clk 0:01:25]} 24. Nxc7 {[%clk 0:00:49]}  Bxc7 {[%clk 0:01:22]} 25. Re7 {[%clk 0:00:47]}  Bf4+ {[%clk 0:01:22]} 26. Kb1 {[%clk 0:00:42]}  Rxb2+ {[%clk 0:01:22]} 27. Ka1 {[%clk 0:00:43]}  Be8 {[%clk 0:01:07]} 28. Rxe8+ {[%clk 0:00:30]}  Kf7 {[%clk 0:01:07]} 29. Rxb8 {[%clk 0:00:28]}  Rxb8 {[%clk 0:01:06]} 30. c3 {[%clk 0:00:20]}  c5 {[%clk 0:01:06]} 31. Nf3 {[%clk 0:00:19]}  Re8 {[%clk 0:01:02]} 32. Kb2 {[%clk 0:00:19]}  Re2+ {[%clk 0:01:01]} 33. Kb3 {[%clk 0:00:20]}  Rxf2 {[%clk 0:01:01]} 34. Rd7+ {[%clk 0:00:18]}  Kg6 {[%clk 0:00:59]} 35. Rxa7 {[%clk 0:00:18]}  Rxg2 {[%clk 0:00:59]} 36. a4 {[%clk 0:00:19]}  Rg3 {[%clk 0:00:58]} 37. Ng5 {[%clk 0:00:15]}  Be5 {[%clk 0:00:54]} 38. Ne4 {[%clk 0:00:15]}  Re3 {[%clk 0:00:53]} 39. Nxc5 {[%clk 0:00:15]}  Rxc3+ {[%clk 0:00:52]} 40. Kb4 {[%clk 0:00:16]}  Rc1 {[%clk 0:00:51]} 41. Ra6+ {[%clk 0:00:14]}  Kf5 {[%clk 0:00:50]} 42. Rc6 {[%clk 0:00:14]}  Bg3 {[%clk 0:00:47]} 43. a5 {[%clk 0:00:14]}  Bxh4 {[%clk 0:00:44]} 44. a6 {[%clk 0:00:14]}  Be1+ {[%clk 0:00:43]} 45. Kb5 {[%clk 0:00:14]}  Rb1+ {[%clk 0:00:42]} 46. Kc4 {[%clk 0:00:14]}  Rc1+ {[%clk 0:00:42]} 47. Kb3 {[%clk 0:00:13]}  h4 {[%clk 0:00:40]} 48. a7 {[%clk 0:00:13]}  Ra1 {[%clk 0:00:39]} 49. Ra6 {[%clk 0:00:13]}  Rb1+ {[%clk 0:00:38]} 50. Kc2 {[%clk 0:00:13]}  Rc1+ {[%clk 0:00:25]} 51. Kxc1 {[%clk 0:00:13]} 1-0

[Event "December 12 Early 2023"]
[Site "https://www.chess.com"]
[Date "2023.12.12"]
[Round "7"]
[White "Bach Ngoc Thuy Duong"]
[Black "Srivatsan Karthikeyan"]
[Result "1-0"]
[Board "147"]
[TimeControl "180+1"]
[WhiteFideId "12408956"]
[BlackFideId "25684248"]
[WhiteElo "2400"]
[BlackElo "2233"]
[WhiteTeam "VIE"]
[BlackTeam "IND"]
[WhiteClock "0:00:51"]
[BlackClock "0:00:36"]

1. d4 {[%clk 0:03:00]}  Nf6 {[%clk 0:02:59]} 2. c4 {[%clk 0:03:01]}  e6 {[%clk 0:03:00]} 3. Nc3 {[%clk 0:03:01]}  Bb4 {[%clk 0:02:59]} 4. Qc2 {[%clk 0:03:00]}  d5 {[%clk 0:02:58]} 5. cxd5 {[%clk 0:02:58]}  exd5 {[%clk 0:02:58]} 6. Bg5 {[%clk 0:02:57]}  O-O {[%clk 0:02:56]} 7. e3 {[%clk 0:02:56]}  c6 {[%clk 0:02:57]} 8. Bd3 {[%clk 0:02:55]}  h6 {[%clk 0:02:57]} 9. Bh4 {[%clk 0:02:54]}  Nbd7 {[%clk 0:02:57]} 10. Nf3 {[%clk 0:02:49]}  Re8 {[%clk 0:02:56]} 11. O-O {[%clk 0:02:49]}  Qc7 {[%clk 0:02:50]} 12. Bg3 {[%clk 0:02:34]}  Bd6 {[%clk 0:02:49]} 13. Nb5 {[%clk 0:02:33]}  cxb5 {[%clk 0:02:42]} 14. Qxc7 {[%clk 0:02:34]}  Bxc7 {[%clk 0:02:42]} 15. Bxc7 {[%clk 0:02:35]}  a6 {[%clk 0:02:39]} 16. Rac1 {[%clk 0:02:32]}  Ne4 {[%clk 0:02:39]} 17. Bf4 {[%clk 0:02:25]}  Ndf6 {[%clk 0:02:38]} 18. Rc7 {[%clk 0:02:24]}  Bg4 {[%clk 0:02:31]} 19. Ne5 {[%clk 0:02:23]}  Be6 {[%clk 0:02:23]} 20. Rxb7 {[%clk 0:02:19]}  Rec8 {[%clk 0:02:22]} 21. Nf3 {[%clk 0:02:09]}  Rc6 {[%clk 0:02:16]} 22. Ne5 {[%clk 0:01:43]}  Rcc8 {[%clk 0:02:05]} 23. Rb6 {[%clk 0:01:43]}  Nd2 {[%clk 0:01:55]} 24. Rd1 {[%clk 0:01:42]}  Nc4 {[%clk 0:01:55]} 25. Bxc4 {[%clk 0:01:31]}  dxc4 {[%clk 0:01:56]} 26. Rc6 {[%clk 0:01:27]}  Nd5 {[%clk 0:01:52]} 27. Bg3 {[%clk 0:01:22]}  Rxc6 {[%clk 0:01:32]} 28. Nxc6 {[%clk 0:01:23]}  Rc8 {[%clk 0:01:32]} 29. Ne5 {[%clk 0:01:21]}  f6 {[%clk 0:01:31]} 30. Ng6 {[%clk 0:01:19]}  Nb4 {[%clk 0:01:30]} 31. Ne7+ {[%clk 0:01:19]}  Kf7 {[%clk 0:01:30]} 32. Nxc8 {[%clk 0:01:19]}  Bxc8 {[%clk 0:01:30]} 33. a3 {[%clk 0:01:16]}  Nd3 {[%clk 0:01:29]} 34. Rd2 {[%clk 0:01:16]}  Bf5 {[%clk 0:01:20]} 35. f3 {[%clk 0:01:15]}  a5 {[%clk 0:01:19]} 36. e4 {[%clk 0:01:15]}  Bd7 {[%clk 0:01:18]} 37. Bc7 {[%clk 0:01:15]}  a4 {[%clk 0:01:08]} 38. Ba5 {[%clk 0:01:15]}  Ke6 {[%clk 0:01:07]} 39. Bc3 {[%clk 0:01:15]}  f5 {[%clk 0:01:07]} 40. Re2 {[%clk 0:01:10]}  fxe4 {[%clk 0:01:07]} 41. Rxe4+ {[%clk 0:01:10]}  Kf7 {[%clk 0:00:59]} 42. d5 {[%clk 0:01:07]}  Bf5 {[%clk 0:00:56]} 43. Rd4 {[%clk 0:01:02]}  Nc1 {[%clk 0:00:52]} 44. Kf2 {[%clk 0:01:00]}  Ne2 {[%clk 0:00:47]} 45. Rd2 {[%clk 0:00:52]}  Nxc3 {[%clk 0:00:47]} 46. bxc3 {[%clk 0:00:51]}  Ke7 {[%clk 0:00:44]} 47. Ke3 {[%clk 0:00:51]}  Kd6 {[%clk 0:00:44]} 48. Kd4 {[%clk 0:00:52]}  Bd3 {[%clk 0:00:42]} 49. Rb2 {[%clk 0:00:51]}  Bf1 {[%clk 0:00:36]} 50. g3 {[%clk 0:00:51]} 1-0